Cogmind - Beta 9.4 @@@ ROGUE MODE // 2020.03.11 @ 04:56:38 Player: Sudoku Result: Self-destructed Performance ------------- Evolutions (1) 500 Regions Visited (2) 400 Robots Destroyed (25) 125 Value Destroyed (642) 642 Prototype IDs (2) 40 Alien Tech Used (0) 0 Bonus (0) 0 TOTAL SCORE: 1707 Bonus ------- None Cogmind --------- Core Integrity 50/400 Matter 275/300 Energy 125/125 System Corruption 0% Temperature Cool (301) Movement Core (600) Ox11 Location -9/Materials Parts ------- > --- POWER (2) -------- Light Ion Engine > --- PROPULSION (3) --- (None) > --- UTILITY (2) ------ High-capacity Storage Unit > --- WEAPON (2) ------- (None) > --- INVENTORY (12) --- Light Ion Engine Flight Unit Improved Flight Unit Medium Matter Pod (100) Medium Matter Pod (100) Hacking Suite Advanced Beam Cannon Advanced Beam Cannon Improved Assault Rifle Mini Grenade Launcher Peak State ------------ > --- POWER ------------ Ion Engine Light Nuclear Core > --- PROPULSION ------- Aluminum Leg Aluminum Leg Aluminum Leg > --- UTILITY ---------- Heat Sink High-capacity Storage Unit > --- WEAPON ----------- Advanced Beam Cannon Advanced Beam Cannon > --- INVENTORY -------- Light Ion Engine Light Ion Engine Light Ion Engine Flight Unit Improved Flight Unit Medium Matter Pod Medium Matter Pod Utility Shielding Hacking Suite Advanced Beam Cannon Improved Assault Rifle Grenade Launcher [Rating: 17] Favorites ----------- Power Ion Engine Engine Ion Engine Power Core Light Nuclear Core Propulsion Aluminum Leg Leg Aluminum Leg Utility Heat Sink Device Heat Sink Storage High-capacity Storage Unit Weapon Small Laser Energy Gun Small Laser Energy Cannon Advanced Beam Cannon Ballistic Gun Assault Rifle Launcher Grenade Launcher Build | -11 -10 -9 ------- Run | Scr Mat Mat Slots Evolved 2 | . . 2 Power 1 | . . 1 Propulsion 1 | . . 1 Utility . | . . . Weapon . | . . . Parts Attached 28 | 6 4 18 Power 7 | 1 . 6 Engine 6 | 1 . 5 Core 1 | . . 1 Reactor . | . . . Propulsion 8 | 2 1 5 Treads . | . . . Leg 8 | 2 1 5 Wheel . | . . . Hover . | . . . Flight . | . . . Utility 5 | 1 2 2 Device 3 | . 1 2 Storage 2 | 1 1 . Processor . | . . . Hackware . | . . . Protection . | . . . Artifact . | . . . Weapon 8 | 2 1 5 Energy Gun 3 | 2 . 1 Energy Cannon 2 | . . 2 Ballistic Gun 2 | . 1 1 Ballistic Cannon . | . . . Launcher 1 | . . 1 Special Weapon . | . . . Impact Weapon . | . . . Slashing Weapon . | . . . Piercing Weapon . | . . . Special Melee Weapon . | . . . Unidentified Prototypes 2 | . . 2 Parts Lost 17 | . 1 16 Power 5 | . . 5 Propulsion 6 | . . 6 Utility 2 | . . 2 Weapon 4 | . 1 3 Highest Loss Streak 9 | . 1 9 Average Slot Usage (%) 97 | . 99 96 Engine 14 | . 14 14 Core 4 | . . 6 Leg 29 | . 28 30 Device 12 | . 13 11 Storage 12 | . 14 11 Energy Gun 10 | . 21 3 Energy Cannon 6 | . . 10 Ballistic Gun 6 | . 6 7 Naked Turns . | . . . Heaviest Build 51 | 12 41 51 Greatest Support 30 | 20 20 30 Greatest Overweight (x) 4 | . 2 4 Average Overweight (x) 1 | . 1 1 Largest Inventory Capacity 12 | 6 12 12 Average Capacity 10 | 5 10 12 Most Carried 12 | 6 12 12 Average Carried 9 | 3 8 10 Final Capacity 12 | 6 12 12 Final Carried 12 | 6 12 10 Class Distribution -------------------- 67% | Mutant 32% | Scavenger-Mutant Dominant Class ---------------- Mutant | -10/Materials Scavenger-Mutant | -9/Materials Resources | -11 -10 -9 ----------- Run | Scr Mat Mat Matter Collected 812 | 303 161 348 Remotely . | . . . Salvage Created 861 | 113 181 567 Parts 53 | 10 13 30 Haulers Intercepted 1 | . . 1 Recyclers Shooed 1 | . . 1 Parts Field Recycled . | . . . Retrieved Matter . | . . . Parts Self-Destructed . | . . . Prevented . | . . . Kills | -11 -10 -9 ------- Run | Scr Mat Mat Combat Hostiles Destroyed 15 | . 4 11 Guns 11 | . 4 7 Cannons 4 | . . 4 Classes Destroyed 11 | 3 3 5 Worker 2 | 1 1 . Builder 1 | . . 1 Tunneler 2 | 2 . . Hauler 1 | . . 1 Recycler 1 | 1 . . Operator 1 | . . 1 Watcher 2 | . 1 1 Swarmer 1 | . 1 . Grunt 10 | . 3 7 Duelist 1 | . . 1 Sentry 3 | . . 3 Best Kill Streak 3 | 2 3 3 Combat Bots Only 3 | . 2 3 Max Kills in Single Turn 2 | 1 1 2 Gunslinging . | . . . Exploded . | . . . Melee . | . . . Uniques/NPCs Destroyed . | . . . Combat | -11 -10 -9 -------- Run | Scr Mat Mat Damage Taken 1846 | . 242 1604 Core 437 | . 87 350 Absorbed by Shields . | . . . Core Remaining (%) 82 | 100 65 . Volleys Fired 98 | 11 24 63 Largest 2 | 2 2 2 Hottest 136 | 90 90 136 Shots Fired 195 | 22 48 125 Gun 149 | 22 48 79 Cannon 43 | . . 43 Launcher 3 | . . 3 Special . | . . . Kinetic 75 | . 15 60 Thermal 117 | 22 33 62 Explosive 3 | . . 3 Electromagnetic . | . . . Robot Hit Streak 16 | 5 9 16 Robot Miss Streak 5 | 3 2 5 Penetration Max . | . . . Secondary Targets . | . . . Shots Hit Robots 127 | 11 36 80 Core Hits 42 | 5 10 27 Critical Hits 4 | . . 4 Critical Kills 1 | . . 1 Critical Parts Destroyed 3 | . . 3 Melee Attacks . | . . . Impact . | . . . Slashing . | . . . Piercing . | . . . Sneak Attacks . | . . . Combat Hostiles . | . . . Follow-up Attacks . | . . . Damage Inflicted 1781 | 179 378 1224 Guns 1348 | 179 378 791 Cannons 396 | . . 396 Explosions 37 | . . 37 Melee . | . . . Ramming . | . . . Kinetic 741 | . 148 593 Thermal 1003 | 179 230 594 Explosive 37 | . . 37 Electromagnetic . | . . . Impact . | . . . Slashing . | . . . Piercing . | . . . Highest Corruption . | . . . Average Corruption . | . . . Corruption Purged . | . . . Overload Shots . | . . . Overflow Damage . | . . . Projectiles . | . . . Explosions . | . . . Melee . | . . . Knockbacks . | . . . Impact . | . . . Kinetic . | . . . Secondary . | . . . Self-Inflicted Damage 28 | . . 28 Shots 1 | . . 1 Rammed . | . . . Targets Rammed . | . . . Kicked . | . . . Crushed . | . . . Highest Temperature 574 | 150 36 574 Average Temperature 177 | 62 18 228 Received Heat Transfer 708 | . 132 576 Effects 18 | . . 18 Shutdowns 7 | . . 7 Energy Bleed 2 | . . 2 Interference 4 | . . 4 Matter Decay 1 | . . 1 Damage (minor) 3 | . . 3 Damage (core) 1 | . . 1 Siege Activations . | . . . Robots Corrupted . | . . . Combat Hostiles . | . . . Parts Fried . | . . . Impact Corruptions . | . . . Robots Melted . | . . . Combat Hostiles . | . . . Parts Melted 2 | 1 . 1 Heat Transferred 2159 | 483 548 1128 Parts Sabotaged . | . . . Parts Stolen . | . . . Parts Stripped . | . . . Power Chain Reactions . | . . . Missiles Intercepted . | . . . Alert | -11 -10 -9 ------- Run | Scr Mat Mat Peak Influence 193 | 20 143 193 Average Influence 65 | 8 67 76 Maximum Alert Level . | . . . Low Security (%) 100 | 100 100 100 Level 1 . | . . . Level 2 . | . . . Level 3 . | . . . Level 4 . | . . . Level 5 . | . . . High Security . | . . . Max Security . | . . . Squads Dispatched 3 | . 1 2 Investigation . | . . . Extermination . | . . . Reinforcement 3 | . 1 2 Assault . | . . . Garrison . | . . . Intercept . | . . . Construction Impeded . | . . . Haulers Reinforced . | . . . Stealth | -11 -10 -9 --------- Run | Scr Mat Mat Distress Signals 2 | . . 2 Communications Jammed . | . . . Distress Signals . | . . . Times Spotted 33 | . 8 25 Peak Tracking Total 6 | . 3 6 Tactical Retreats 1 | . . 1 Traps | -11 -10 -9 ------- Run | Scr Mat Mat Traps Triggered . | . . . Indirectly . | . . . Trap Hack Attempts . | . . . Triggered . | . . . Disarmed . | . . . Reprogrammed . | . . . Reused . | . . . Traps Extracted . | . . . Installed . | . . . Triggered . | . . . Machines | -11 -10 -9 ---------- Run | Scr Mat Mat Machines Disabled 2 | . . 2 Max in Single Turn 1 | . . 1 Machines Sabotaged . | . . . Garrisons Compromised . | . . . Overloaded Fab Kills . | . . . Fab Network Shutdowns . | . . . Hacking | -11 -10 -9 --------- Run | Scr Mat Mat Machines Accessed 5 | . 2 3 Terminals 5 | . 2 3 Fabricators . | . . . Repair Stations . | . . . Recycling Units . | . . . Scanalyzers . | . . . Garrison Access . | . . . Total Hacks 20 | . 6 14 Successful 11 | . 4 7 Failed 9 | . 2 7 Catastrophic 1 | . . 1 Database Lockouts . | . . . Manual 13 | . 5 8 Terminals 20 | . 6 14 Fabricators . | . . . Repair Stations . | . . . Recycling Units . | . . . Scanalyzers . | . . . Garrison Access . | . . . Terminal Hacks 6 | . 2 4 Terminal Index 2 | . 1 1 Locate Traps 1 | . . 1 Zone Layout 3 | . 1 2 Fabricator Hacks . | . . . Repair Station Hacks . | . . . Recycling Unit Hacks . | . . . Scanalyzer . | . . . Garrison Access Hacks . | . . . Unauthorized Hacks 11 | . 5 6 Terminals 5 | . 2 3 Track 4 | . 1 3 Botnet 1 | . 1 . Fabricators . | . . . Repair Stations . | . . . Recycling Units . | . . . Scanalyzers . | . . . Garrison Access . | . . . Data Cores Recovered . | . . . Used . | . . . Hacking Detections 5 | . 2 3 Full Trace Events . | . . . Feedback Events . | . . . Feedback Blocked . | . . . Robot Schematics Acquired . | . . . Robots Built . | . . . Matter . | . . . Time . | . . . Total Robot Build Rating . | . . . Part Schematics Acquired . | . . . Parts Built . | . . . Matter . | . . . Time . | . . . Total Part Build Rating . | . . . Parts Repaired . | . . . Time . | . . . Parts Recycled . | . . . Recycled Matter . | . . . Retrieved Matter . | . . . Retrieved Components . | . . . Parts Scanalyzed . | . . . Part Schematics Acquired . | . . . Parts Damaged . | . . . Bothacking | -11 -10 -9 ------------ Run | Scr Mat Mat Used RIF Installer . | . . . Robots Hacked . | . . . Non-combat . | . . . Combat . | . . . Robot Hacks Applied . | . . . Relay Couplers Released . | . . . Robots Rewired . | . . . Allies Hacked . | . . . Hacks Repelled . | . . . Allies | -11 -10 -9 -------- Run | Scr Mat Mat Total Allies . | . . . Largest Group . | . . . Highest-Rated Group . | . . . Highest-Rated Ally . | . . . Total Orders . | . . . Ally Attacks . | . . . Total Damage . | . . . Kills . | . . . Allies Corrupted . | . . . Allies Melted . | . . . Intel | -11 -10 -9 ------- Run | Scr Mat Mat Robot Analysis Total . | . . . Derelict Logs Recovered . | . . . Drone Launches . | . . . Drone Recoveries . | . . . Exploration | -11 -10 -9 ------------- Run | Scr Mat Mat Turns Passed 1382 | 158 478 746 Spaces Moved 654 | 89 229 336 Core 3 | 3 . . Treads . | . . . Legs 651 | 86 229 336 Wheels . | . . . Hover . | . . . Flight . | . . . Fastest Speed 50 | 50 120 150 Average Speed 151 | 117 164 152 Slowest Speed 240 | 120 180 240 Overloaded Moves . | . . . Propulsion Burnouts . | . . . Robots Hopped . | . . . Cave-ins Triggered . | . . . Exploration Rate (%) 24 | 6 37 30 Regions Visited 2 Branch Regions . Pre-discovered Areas . | . . . Known Exits Taken . | . . . Unknown Exits Taken 2 | 1 1 . Scrap Searched . | . . . Spaces Dug 23 | . . 23 Terrain Destroyed 32 | . . 32 Melee . | . . . Projectile 2 | . . 2 AOE 30 | . . 30 Actions | -11 -10 -9 --------- Run | Scr Mat Mat Total 848 | 121 285 442 Wait 23 | . 12 11 Move 652 | 88 228 336 Hop . | . . . Pick Up 37 | 14 12 11 Fast Attach 1 | . 1 . Attach 19 | 6 1 12 Detach 1 | . . 1 Swap 8 | . 2 6 Drop 9 | 2 5 2 Fire 98 | 11 24 63 Melee . | . . . Ram . | . . . Kick . | . . . Crush . | . . . Escape Stasis . | . . . Rewire . | . . . Trap . | . . . Miscellaneous . | . . . Route ------- -11/Scrapyard -10/Materials -9/Materials (discovered 1 exit: [*Min]) History --------- Turn | Location | Event 2 | -11/Scrapyard | Discovered new exit (range 16) 159 | -11/Scrapyard | Entered Materials 277 | -10/Materials | Met 8R-AWN 305 | -10/Materials | Build established: Mutant 585 | -10/Materials | Discovered new exit (range 16) 637 | -10/Materials | Entered another Materials area 637 | -9/Materials | Evolved 2 slots: Power x1, Propulsion x1 976 | -9/Materials | Lost 4 parts (1p2n1u) 1172 | -9/Materials | Build established: Scavenger-Mutant 1234 | -9/Materials | Discovered new exit (range 15) 1351 | -9/Materials | Core integrity fell below 50% 1377 | -9/Materials | Core integrity fell below 20% 1383 | -9/Materials | Self-destructed Last Messages --------------- 01366_ K-01 Serf collects debris. 01367_ Overheating: Lgt. Ion Engine damaged (-9). 01369_ K-01 Serf collects debris. 01370_ Power failure, Lgt. Ion Engine shutdown. 01370_ Overheating: System interference. 01370_ Grenade Launcher temporarily disabled. 01370_ Adv. Beam Cannon temporarily disabled. 01370_ Grenade Launcher destroyed. 01371_ Overheating: Matter decay (-30). 01371_ The unstable cave ceiling collapses. 01372_ Power failure, Lgt. Ion Engine shutdown. 01372_ Overheating: Core damaged (-72). 01372_ K-01 Serf collects debris. 01373_ Adv. Beam Cannon destroyed. 01377_ Lgt. Ion Engine destroyed. 01378_ K-01 Serf collects debris. 01380_ Aluminum Leg destroyed. 01380_ Heat Sink destroyed. 01381_ The unstable cave ceiling collapses. 01382_ K-01 Serf collects debris. Map ----- +----------------------------------------------------+ | ?????????????????????????????????????????????????? | | ?????????????????????????????????????????????????? | | ?????????????????????????????????????????????????? | | ?????????????????????????????????????????????????? | | ?????????????????????????????????????????????????? | | ?????????????????????????????????????????????????? | | ?????????????????????????????????????????????????? | | ?????????????????????????????????????????????????? | | ?????????????????????????????????????????????????? | | ?????????????????????????????????????????????????? | | ?????????????????????????????????????????????????? | | ?????????????????????????????????????????????????? | | ????????????????# # #??# # ??????????? | | ????????????????# + #### #"??????????? | | ????????######### # #"??????????? | | ???????? ########### #"??????????? | | ???????? # ???? #????? | | ???????? ############ ##????####### | | ???????? ###+########??????# ???? | | ???????? ## ######## ???? | | ???????? ## + ???? | | ???????? ## ### #####+######+????####### | | ???????? ## """ """ #?# #?# # ??????##### | | ???????? ## """ """ #?# #?# # ??????# | | ???????? ## """ """ ### #?# ? ""??????# """ | | ???????? ## # @### # ""??????# """ | | ???????? ## ## # ""??????# """ | | ???????? ############ ss### # ??????#t | | ???????? # ## kgs #?###########??????# | | ???????? # """ ### g k##??????????????????# | | ???????? # """ #?# | #??????????????????# | | ???????? # """ #?# %%* ######???#########?##### | | ???????? + """ #?# # # ##### ##### | | ???????? # ### = ! | | ???????? # +% %/ % " < r | | ???????? # ### ! = "%" | | ???????? # #?###### #####"" "##### | | ???????? ##########????#####+#####?#" !"| "#???##t | | ???????? #?????????????# #?#"""""""#????# | | ???????? #?????????????# ###########????# | | ???????? ###########???# # ?????????# | | ???????? ## #???# """ # "????????## | | ???????? ## """ #???# """ # "???###### | | ???????????????????????# "????????????????# | | ???????????????????????#??????????????????+ | | ??????????????????????????????????????????# | | ??????????????????????????????????????????###### | | ???????????????????????????????????????????????### | | ?????????????????????????????????????????????????? | | ???????????????????????????????????????#/????????? | +----------------------------------------------------+ Best States ------------- Heat Dissipation 38 Energy Generation 19 Energy Capacity 400 Matter Stores 300 Matter Capacity 300 Sight Range 16 Robot Scan Range 13 Terrain Scan Density 10 Evasion (%) 40 Item Schematics ----------------- None Robot Schematics ------------------ None Fabricated ------------ Nothing Alien Tech Used ----------------- None Achievements -------------- None Challenges ------------ None Game ------ Seed LongswordSupersonicInverter Manual? 0 Play Time 00:33:50 Cumulative 36.8 hours Start 2020.03.11 @ 04:22:47 End 2020.03.11 @ 04:56:38 Sessions 1 Manual Loads 0 Difficulty Rogue Special Mode None Game No. 22 Rogue 22 Adventurer 0 Explorer 0 Win Type - Total 0 Types 0/0/0/0/0/0/0 Lore% 4 Gallery% 26 Achievement% 12 Wizard Run 0 Options --------- ASCII 0 Keyboard 0 Movement Mouse Keybinds 0 Fullscreen 0 Font 16/SmallcapsGlow Map View 76x50 Tactical HUD 1 Map Filters NONE Filters NONE Steam 1 RUN: 4da72f95-98d2-43da-87e4-441491bad837